bitfinex/quotes_BTCUSD_20240831
["timestamp","ask_amount","ask_price","bid_price","bid_amount"]
[1725076671506,0.95952312,59424.0,59423.0,0.1319998]
[1725076671911,1.19511812,59424.0,59423.0,0.1319998]
[1725076672829,5.29511812,59424.0,59423.0,0.1319998]
[1725076675427,5.20511812,59424.0,59423.0,0.1319998]
[1725076676044,3.95311812,59424.0,59423.0,0.1319998]
[1725076676700,3.92011812,59424.0,59423.0,0.1319998]
[1725076677327,3.61711812,59424.0,59423.0,0.1319998]
[1725076678677,3.49511812,59424.0,59423.0,0.1319998]
[1725076679856,3.47811812,59424.0,59423.0,0.1319998]
[1725076680459,3.24252312,59424.0,59423.0,0.1319998]
[1725076680665,0.95652312,59424.0,59423.0,0.14569978]
[1725076681613,1.19211812,59424.0,59423.0,0.14569978]
[1725076681863,0.95652312,59424.0,59423.0,0.14569978]
[1725076684110,0.95652312,59424.0,59423.0,0.1319998]
[1725076686988,5.13555412,59424.0,59423.0,0.1319998]
[1725076687398,4.66652312,59424.0,59423.0,0.1319998]
[1725076687603,3.07652312,59424.0,59423.0,0.1319998]
[1725076688015,3.04152312,59424.0,59423.0,0.1319998]
[1725076689340,3.27711812,59424.0,59423.0,0.1319998]
[1725076689551,3.04152312,59424.0,59423.0,0.1319998]
[1725076690480,3.02452312,59424.0,59423.0,0.1319998]
[1725076691708,2.59652312,59424.0,59423.0,0.1319998]
[1725076691909,0.95652312,59424.0,59423.0,0.1319998]
[1725076693309,0.89252312,59424.0,59423.0,0.1319998]
[1725076695168,0.57446915,59424.0,59423.0,0.15574708]
[1725076695385,0.65692812,59424.0,59423.0,0.15574708]
[1725076695602,0.64466897,59424.0,59423.0,0.1369998]
[1725076696274,1.11585897,59424.0,59423.0,0.1319998]
[1725076700580,3.73685897,59424.0,59423.0,0.1319998]
[1725076702663,3.66485897,59424.0,59423.0,0.1319998]
[1725076703585,3.60685897,59424.0,59423.0,0.1319998]
[1725076704791,3.07985897,59424.0,59423.0,0.1319998]
[1725076707656,0.9254,59424.0,59423.0,0.1319998]
[1725076707895,1.00785897,59424.0,59423.0,0.1319998]
[1725076711268,1.00785897,59424.0,59423.0,0.1309998]
[1725076711739,1.00785897,59424.0,59423.0,0.1349998]
[1725076712598,1.00785897,59424.0,59423.0,0.1339998]
[1725076712810,1.00785897,59424.0,59423.0,0.1389998]
[1725076714924,0.77226397,59424.0,59423.0,0.1389998]
[1725076716472,0.77226397,59424.0,59423.0,0.1339998]
[1725076716900,0.77226397,59424.0,59423.0,0.1379998]
[1725076717110,0.77226397,59424.0,59423.0,0.1339998]
[1725076717344,0.65446697,59424.0,59423.0,0.1349998]
[1725076717582,0.77226397,59424.0,59423.0,0.16451779]
[1725076718207,0.77226397,59424.0,59423.0,0.16151779]
[1725076718419,0.77226397,59424.0,59423.0,0.16551779]
[1725076721133,0.77226397,59424.0,59423.0,0.1389998]
[1725076724601,0.77226397,59424.0,59423.0,0.0098998]
[1725076725281,1.00785897,59424.0,59423.0,0.0098998]
[1725076725709,0.77226397,59424.0,59423.0,0.0098998]
[1725076726159,1.00785897,59424.0,59423.0,0.0098998]
[1725076726810,5.35888997,59424.0,59423.0,0.0098998]
[1725076727488,5.35888997,59424.0,59423.0,0.0058998]
[1725076728451,5.02247697,59424.0,59423.0,0.0058998]
[1725076728872,5.25807197,59424.0,59423.0,0.0008998]
[1725076730585,5.35888997,59424.0,59423.0,0.0008998]
[1725076732088,5.36388997,59424.0,59423.0,0.0008998]
[1725076732709,5.36788997,59424.0,59423.0,0.0008998]
[1725076732916,5.36388997,59424.0,59423.0,0.0008998]
[1725076733332,5.36588997,59424.0,59423.0,0.0008998]
[1725076734160,5.36088997,59424.0,59423.0,0.0008998]
[1725076734787,5.36288997,59424.0,59423.0,0.0008998]
[1725076735238,1.24745397,59424.0,59423.0,0.0008998]
[1725076735480,5.59848497,59424.0,59423.0,0.0008998]
[1725076737139,5.62148497,59424.0,59423.0,0.0008998]
[1725076742262,5.22845397,59424.0,59423.0,0.0008998]
[1725076742674,4.89645397,59424.0,59423.0,0.0008998]
[1725076743560,4.88345397,59424.0,59423.0,0.0008998]
[1725076744618,4.68345397,59424.0,59423.0,0.0008998]
[1725076744825,4.07845397,59424.0,59423.0,0.0008998]
[1725076749534,1.27045397,59424.0,59423.0,0.0008998]
[1725076749755,4.64345397,59424.0,59423.0,0.0008998]
[1725076750267,4.44145397,59424.0,59423.0,0.0008998]
[1725076764356,5.62148497,59424.0,59423.0,0.0008998]
[1725076769171,5.85707997,59424.0,59423.0,0.0008998]
[1725076769351,5.86023656,59424.0,59423.0,0.0008998]
[1725076769567,5.85823656,59424.0,59423.0,0.0008998]
[1725076771283,5.86023656,59424.0,59423.0,0.0008998]
[1725076772114,5.539026,59424.0,59423.0,0.0008998]
[1725076772322,5.62148497,59424.0,59423.0,0.0008998]
[1725076773659,5.85707997,59424.0,59423.0,0.0008998]
[1725076774404,5.50368797,59424.0,59423.0,0.0008998]
[1725076774609,5.62148497,59424.0,59423.0,0.0008998]
[1725076780690,5.539026,59424.0,59423.0,0.0008998]
[1725076780920,5.62148497,59424.0,59423.0,0.0008998]
[1725076788065,5.62148497,59424.0,59423.0,0.1349998]
[1725076791481,5.38588997,59424.0,59423.0,0.1349998]
[1725076792132,5.62148497,59424.0,59423.0,0.1349998]
[1725076793040,3.1964,59424.0,59423.0,0.14849978]
[1725076793276,2.10585897,59424.0,59423.0,0.14849978]
[1725076797418,2.10585897,59424.0,59423.0,0.1349998]
[1725076799201,1.91185897,59424.0,59423.0,0.1349998]
[1725076799432,1.60185897,59424.0,59423.0,0.1349998]
[1725076801007,1.41085897,59424.0,59423.0,0.1349998]
[1725076804371,1.3284,59424.0,59423.0,0.1349998]
[1725076804576,1.41085897,59424.0,59423.0,0.1349998]
[1725076806037,1.41085897,59424.0,59423.0,0.0008998]
[1725076809390,5.36288997,59424.0,59423.0,0.0008998]
[1725076809610,5.40691838,59424.0,59423.0,0.0008998]
[1725076810260,4.14688738,59424.0,59423.0,0.0008998]
[1725076810469,3.72688738,59424.0,59423.0,0.0008998]
[1725076810685,2.41188738,59424.0,59423.0,0.0008998]
[1725076810905,1.70488738,59424.0,59423.0,0.1243998]
[1725076811135,1.27988738,59424.0,59423.0,0.13683978]
[1725076812520,1.27988738,59424.0,59423.0,0.1243998]
[1725076812742,1.17506938,59424.0,59423.0,0.1243998]
[1725076816312,1.17480719,59424.0,59423.0,0.1243998]
[1725076818054,0.63275322,59424.0,59423.0,0.1243998]
[1725076818318,0.47961719,59424.0,59423.0,0.1243998]
[1725076818788,0.12648738,59424.0,59423.0,0.13733978]
[1725076819033,0.47987938,59424.0,59423.0,0.13733978]
[1725076820392,0.04402841,59424.0,59423.0,0.14233978]
[1725076820626,0.24428438,59424.0,59423.0,0.14233978]
[1725076820843,0.71547438,59424.0,59423.0,0.1243998]
[1725076821492,0.71547438,59424.0,59423.0,0.1293998]
[1725076821699,0.71547438,59424.0,59423.0,0.1283998]
[1725076822318,0.71547438,59424.0,59423.0,0.1243998]
[1725076822524,0.71629238,59424.0,59423.0,0.1293998]
[1725076822932,0.71629238,59424.0,59423.0,0.14233978]
[1725076823140,0.48069738,59424.0,59423.0,0.14233978]
[1725076823354,0.48069738,59424.0,59423.0,0.14733978]
[1725076823566,0.48069738,59424.0,59423.0,0.14933978]
[1725076823780,0.48069738,59424.0,59423.0,0.14433978]
[1725076823982,0.48069738,59424.0,59423.0,0.14733978]
[1725076829066,0.04484641,59424.0,59423.0,0.19774969]
[1725076829279,0.04484641,59424.0,59423.0,0.26513878]
[1725076829512,0.04484641,59424.0,59423.0,0.26850401]
[1725076829750,0.04484641,59424.0,59423.0,0.73970201]
[1725076829974,0.02722593,59424.0,59423.0,1.21439175]
[1725076830197,0.02722593,59424.0,59423.0,1.23959671]
[1725076830412,0.02722593,59424.0,59423.0,1.23945881]
[1725076830624,0.02722593,59424.0,59423.0,1.23745881]
[1725076830846,0.02722593,59424.0,59423.0,1.23445881]
[1725076831085,0.02822593,59424.0,59423.0,1.24645881]
[1725076831304,0.02922593,59424.0,59423.0,1.13018307]
[1725076832396,0.02922593,59424.0,59423.0,1.23084538]
[1725076832620,0.02922593,59424.0,59423.0,0.75964738]
[1725076833051,0.02922593,59424.0,59423.0,0.7467074]
[1725076833283,0.61821293,59424.0,59423.0,0.6239084]
[1725076833565,0.61821293,59424.0,59423.0,0.1543998]
[1725076833799,0.38206259,59424.0,59423.0,0.1543998]
[1725076834465,0.61765759,59424.0,59423.0,0.1543998]
[1725076835338,0.61765759,59424.0,59423.0,0.17487311]
[1725076835763,0.6173948,59424.0,59423.0,0.17487311]
[1725076840778,0.8529898,59424.0,59423.0,0.0258998]
[1725076842562,1.3849898,59424.0,59423.0,0.0258998]
[1725076844849,0.8529898,59424.0,59423.0,0.0258998]
[1725076855780,0.85272693,59424.0,59423.0,0.0258998]
[1725076861256,0.8274,59424.0,59423.0,0.0258998]
[1725076861904,0.83968205,59424.0,59423.0,0.0258998]
[1725076865959,0.71906705,59424.0,59423.0,0.0258998]
[1725076866179,0.83686405,59424.0,59423.0,0.0258998]
[1725076869067,0.83768205,59424.0,59423.0,0.0258998]
[1725076873998,0.35421,59424.0,59423.0,0.1599998]
[1725076874226,0.35421,59424.0,59423.0,0.29917495]
[1725076874227,0.000818,59424.0,59423.0,0.29917495]
[1725076874446,0.000818,59424.0,59423.0,0.18137595]
[1725076875696,0.000818,59424.0,59423.0,0.1599998]
[1725076875697,0.00055511,59424.0,59423.0,0.1599998]
[1725076877578,0.00055511,59424.0,59423.0,0.23559843]
[1725076878406,0.00055511,59424.0,59423.0,0.53389564]
[1725076878939,0.01817559,59424.0,59423.0,0.53389564]
[1725076879990,0.01817559,59424.0,59423.0,0.53389563]
[1725076881783,0.13597259,59424.0,59423.0,0.53389563]
[1725076882228,0.13597259,59424.0,59423.0,0.53389564]
[1725076888727,0.01817559,59424.0,59423.0,0.53389564]
[1725076890256,0.01817559,59424.0,59423.0,0.53389481]
[1725076895612,0.13597259,59424.0,59423.0,0.53389481]
[1725076895864,0.1357097,59424.0,59423.0,0.53389481]
[1725076896074,0.3713047,59424.0,59423.0,0.53389481]
[1725076896505,0.68935867,59424.0,59423.0,0.52189481]
[1725076896719,0.45376367,59424.0,59423.0,0.0118998]
[1725076896932,0.45376367,59424.0,59423.0,0.0188998]
[1725076897628,0.45376367,59424.0,59423.0,0.0128998]
[1725076898042,0.45376367,59424.0,59423.0,0.0188998]
[1725076899073,0.43614319,59424.0,59423.0,0.0188998]
[1725076899283,0.43614319,59424.0,59423.0,0.06232552]
[1725076899487,0.67173819,59424.0,59423.0,0.06932552]
[1725076901887,0.55364897,59424.0,59423.0,0.0188998]
[1725076902548,0.67144597,59424.0,59423.0,0.0188998]
[1725076904604,0.67226397,59424.0,59423.0,0.0188998]
[1725076906220,0.589805,59424.0,59423.0,0.0188998]
[1725076909004,0.37183048,59424.0,59423.0,0.0188998]
[1725076911527,0.60742548,59424.0,59423.0,0.0138998]
[1725076911749,0.84302048,59424.0,59423.0,0.0138998]
[1725076912183,0.84302048,59424.0,59423.0,0.0078998]
[1725076912413,0.84302048,59424.0,59423.0,0.0008998]
[1725076912642,0.84302048,59424.0,59423.0,0.0038998]
[1725076913088,0.84302048,59424.0,59423.0,0.0008998]
[1725076913319,0.84302048,59424.0,59423.0,0.0018998]
[1725076913961,0.84302048,59424.0,59423.0,0.0028998]
[1725076915801,0.84275759,59424.0,59423.0,0.0028998]
[1725076921748,0.84275759,59424.0,59423.0,0.02809892]
[1725076922647,0.60716259,59424.0,59423.0,0.02809892]
[1725076923512,0.37156759,59424.0,59423.0,0.02809892]
[1725076925764,0.37130484,59424.0,59423.0,0.02809892]
[1725076926842,0.37130484,59424.0,59423.0,0.10373682]
[1725076932289,0.13623548,59424.0,59423.0,0.10373682]
[1725076933821,0.13623548,59424.0,59423.0,0.02809892]
[1725076934649,0.13623548,59424.0,59423.0,0.10373682]
[1725076935482,0.13623548,59424.0,59423.0,0.47763882]
[1725076935748,0.13623548,59424.0,59423.0,0.47764229]
[1725076935931,0.13623548,59424.0,59423.0,0.10373682]
[1725076936139,0.01843848,59424.0,59423.0,0.10873682]
[1725076936589,0.01843848,59424.0,59423.0,0.03309892]
[1725076936994,0.01843848,59424.0,59423.0,0.10874676]
[1725076937883,0.01843848,59424.0,59423.0,0.03309892]
[1725076938559,0.13623548,59424.0,59423.0,0.0078998]
[1725076939046,0.01843848,59424.0,59423.0,0.0078998]
[1725076939823,0.13623548,59424.0,59423.0,0.0078998]
[1725076945872,0.13597263,59424.0,59423.0,0.0078998]
[1725076947032,0.13597263,59424.0,59423.0,0.03277028]
[1725076948475,0.13597263,59424.0,59423.0,0.10843483]
[1725076949215,0.31804197,59428.0,59423.0,0.08321352]
[1725076949391,0.117797,59424.0,59423.0,0.08321522]
[1725076950138,0.117797,59424.0,59423.0,0.08121677]
[1725076951591,0.118615,59424.0,59423.0,0.08121677]
[1725076951996,0.118615,59424.0,59423.0,0.08221677]
[1725076953662,0.11092444,59424.0,59423.0,0.08221677]
[1725076956466,0.11092444,59424.0,59423.0,0.08221727]
[1725076956839,0.11092444,59424.0,59423.0,0.05734679]
[1725076958447,0.11092444,59424.0,59423.0,0.05634679]
[1725076958904,0.11092444,59424.0,59423.0,0.05734679]
[1725076959110,0.000818,59424.0,59423.0,0.0068998]
[1725076959316,0.118615,59424.0,59423.0,0.0068998]
[1725076959521,0.118615,59424.0,59423.0,0.12499692]
[1725076960086,0.118615,59424.0,59423.0,0.12399692]
[1725076960288,0.118615,59424.0,59423.0,0.12999692]
[1725076960493,0.118615,59424.0,59423.0,0.50890012]
[1725076960691,0.118615,59424.0,59423.0,0.13499692]
[1725076961125,0.118615,59424.0,59423.0,0.08757029]
[1725076961327,0.118615,59424.0,59423.0,0.09357029]
[1725076961761,0.118615,59424.0,59423.0,0.08757029]
[1725076962186,0.118615,59424.0,59423.0,0.09457029]
[1725076962578,0.118615,59424.0,59423.0,0.46847455]
[1725076963555,0.118615,59424.0,59423.0,0.39280406]
[1725076964611,0.13623701,59424.0,59423.0,0.39280406]
[1725076964839,0.37183201,59424.0,59423.0,0.39280406]
[1725076965057,0.13623701,59424.0,59423.0,0.09458016]
[1725076965265,0.13623701,59424.0,59423.0,0.46848947]
[1725076965468,0.13623701,59424.0,59423.0,0.39280911]
[1725076965881,0.37156912,59424.0,59423.0,0.46849188]
[1725076966321,0.36656912,59424.0,59423.0,0.0188998]
[1725076966733,0.36656912,59424.0,59423.0,0.09458257]
[1725076967376,0.36656912,59424.0,59423.0,0.46849189]
[1725076968197,0.36656912,59424.0,59423.0,0.39280912]
[1725076968647,0.36656912,59424.0,59423.0,0.46850046]
[1725076969306,0.36656912,59424.0,59423.0,0.46850498]
[1725076970195,0.36656912,59424.0,59423.0,0.09459566]
[1725076970636,0.36656912,59424.0,59423.0,0.4685071]
[1725076971927,0.36656912,59424.0,59423.0,0.4685217]
[1725076973069,0.36656912,59424.0,59423.0,0.09461014]
[1725076973492,0.36656912,59424.0,59423.0,0.46852187]
[1725076974172,0.36656912,59424.0,59423.0,0.09461014]
[1725076974597,0.36656912,59424.0,59423.0,0.46852356]
[1725076975460,0.10264359,59424.0,59423.0,0.0188998]
[1725076975896,0.33823859,59424.0,59423.0,0.0188998]
[1725076983084,0.33823859,59424.0,59423.0,0.0138998]
[1725076983300,0.57383359,59424.0,59423.0,0.06437922]
[1725076983515,0.47119,59424.0,59423.0,0.06437922]
[1725076983726,0.47119,59424.0,59423.0,0.0138998]
[1725076984147,0.353392,59424.0,59423.0,0.0138998]
[1725076984600,0.353392,59424.0,59423.0,0.0008998]
[1725076985014,0.353392,59424.0,59423.0,0.0038998]
[1725076985908,0.353392,59424.0,59423.0,0.05437562]
[1725076985909,0.35312911,59424.0,59423.0,0.05437562]
[1725076986090,0.35312911,59424.0,59423.0,0.05537562]
[1725076986745,0.35312911,59424.0,59423.0,0.05437562]
[1725076986981,0.35312911,59424.0,59423.0,0.05737562]
[1725076987191,0.35312911,59424.0,59423.0,0.06237562]
[1725076988025,0.35312911,59424.0,59423.0,0.0623731]
[1725076988285,0.35312911,59424.0,59423.0,0.08848204]
[1725076988286,0.35394711,59424.0,59423.0,0.08848204]
[1725076988503,0.35394711,59424.0,59423.0,0.03800874]
[1725076989145,0.35394711,59424.0,59423.0,0.0088998]
[1725076989606,0.118615,59424.0,59423.0,0.0128998]
[1725076989822,0.118615,59424.0,59423.0,0.0098998]
[1725076990035,0.118615,59424.0,59423.0,0.0138998]
[1725076991299,0.000818,59424.0,59423.0,0.0138998]
[1725076993433,0.000818,59424.0,59423.0,0.08960266]
[1725076993647,0.000818,59424.0,59423.0,0.48873534]
[1725076994267,0.000818,59424.0,59423.0,0.38779819]
[1725076995921,0.000818,59424.0,59423.0,0.48873534]
[1725077004677,0.000818,59424.0,59423.0,0.37979819]
[1725077004888,0.000818,59424.0,59423.0,0.38679819]
[1725077005559,0.000818,59424.0,59423.0,0.37979819]
[1725077005759,0.000818,59424.0,59423.0,0.39679819]
[1725077005999,0.000818,59424.0,59423.0,0.59163037]
[1725077006203,0.000818,59424.0,59423.0,0.1406988]
[1725077010366,0.000818,59424.0,59423.0,0.0228998]
[1725077013214,0.235579,59428.0,59423.0,0.0228998]
[1725077013680,0.000818,59435.0,59432.0,0.122781]
[1725077013819,0.000818,59435.0,59432.0,0.37963053]
[1725077013820,0.000818,59433.0,59432.0,0.37963053]
[1725077013995,0.000818,59433.0,59432.0,0.85075653]
[1725077014680,0.000818,59433.0,59432.0,1.08631953]
[1725077014878,0.000818,59433.0,59432.0,0.85075653]
[1725077015664,0.000818,59433.0,59432.0,0.85375653]
[1725077015875,0.000818,59433.0,59432.0,0.85675653]
[1725077018046,0.000818,59433.0,59432.0,0.77429756]
[1725077018262,0.000818,59433.0,59432.0,0.85675653]
[1725077018703,0.000818,59433.0,59432.0,1.23052555]
[1725077019354,0.000818,59433.0,59432.0,1.30590976]
[1725077019564,0.000818,59433.0,59432.0,1.30290976]
[1725077019784,0.000818,59433.0,59432.0,1.30590976]
[1725077020228,0.000818,59433.0,59432.0,0.93214074]
[1725077020445,0.000818,59433.0,59432.0,0.84968177]
[1725077020660,0.000818,59433.0,59432.0,0.84668177]
[1725077020873,0.000818,59433.0,59432.0,0.77129756]
[1725077021970,0.000818,59433.0,59432.0,0.78229756]
[1725077022189,0.000818,59433.0,59432.0,0.79629756]
[1725077022456,0.000818,59433.0,59432.0,0.78229756]
[1725077023124,0.000818,59433.0,59432.0,0.79629756]
[1725077023351,0.000818,59433.0,59432.0,1.24545771]
[1725077024285,0.000818,59433.0,59432.0,0.87168177]
[1725077024501,0.000818,59433.0,59432.0,0.87843277]
[1725077024717,0.000818,59433.0,59432.0,0.86443277]
[1725077024965,0.000818,59433.0,59432.0,0.87843277]
[1725077025184,0.000818,59433.0,59432.0,0.80304856]
[1725077025930,0.000818,59433.0,59432.0,0.87843277]
[1725077027213,0.000818,59433.0,59432.0,0.80304856]
[1725077028696,0.18578113,59445.0,59437.0,0.235541]
[1725077028913,0.18578113,59445.0,59438.0,0.02890728]
[1725077029359,0.30353813,59445.0,59442.0,0.005]
[1725077029599,0.117758,59444.0,59442.0,0.005]
[1725077031877,0.117758,59444.0,59442.0,0.018]
[1725077032091,0.117758,59444.0,59442.0,0.011]
[1725077032299,0.117758,59444.0,59442.0,0.005]
[1725077032534,0.117758,59444.0,59442.0,0.011]
[1725077032750,0.117758,59444.0,59442.0,0.016]
[1725077035843,0.118576,59444.0,59442.0,0.016]
[1725077036255,0.000818,59444.0,59442.0,0.016]
[1725077037567,0.000818,59444.0,59442.0,0.04450703]
[1725077039195,0.000818,59444.0,59442.0,0.03350703]
[1725077039668,0.000818,59444.0,59442.0,0.04650703]
[1725077040561,0.000818,59444.0,59442.0,0.16426803]
[1725077040789,0.000818,59444.0,59442.0,0.04650703]
[1725077041225,0.118576,59444.0,59442.0,0.018]
[1725077041463,0.118576,59444.0,59442.0,0.012]
[1725077041921,0.118576,59444.0,59442.0,0.019]
[1725077041922,0.08327697,59444.0,59442.0,0.019]
[1725077042363,0.20103497,59444.0,59442.0,0.019]
[1725077042600,0.117759,59443.0,59442.0,0.019]
[1725077042819,0.117759,59443.0,59442.0,0.027]
[1725077044227,0.117759,59443.0,59442.0,0.005]
[1725077044416,0.117759,59443.0,59442.0,0.013]
[1725077044670,0.117759,59443.0,59442.0,0.022]
[1725077045790,0.353278,59443.0,59442.0,0.022]
[1725077046247,0.824316,59443.0,59442.0,0.017]
[1725077046460,5.3138063,59443.0,59442.0,0.017]
[1725077046676,5.223047,59443.0,59442.0,0.017]
[1725077047343,5.223047,59443.0,59442.0,0.009]
[1725077047773,5.223047,59443.0,59442.0,0.012]
[1725077048004,5.223047,59443.0,59442.0,0.003]
[1725077048221,5.23622002,59443.0,59442.0,0.006]
[1725077048659,5.11846102,59443.0,59442.0,0.006]
[1725077049543,5.23622002,59443.0,59442.0,0.006]
[1725077049753,5.31867899,59443.0,59442.0,0.006]
[1725077049971,2.99059297,59443.0,59442.0,0.006]
[1725077050397,2.42659297,59443.0,59442.0,0.006]
[1725077050638,1.56259297,59443.0,59442.0,0.006]
[1725077050877,1.16059297,59443.0,59442.0,0.006]
[1725077055561,1.39611197,59443.0,59442.0,0.006]
[1725077055785,1.69975974,59443.0,59442.0,0.006]
[1725077056004,1.69975974,59443.0,59429.0,0.0008998]
[1725077056005,0.67138597,59430.0,59429.0,0.0008998]
[1725077056683,0.90695697,59430.0,59429.0,0.0008998]
[1725077056911,5.35798797,59430.0,59429.0,0.0008998]
[1725077058320,5.35798797,59430.0,59429.0,0.0018998]
[1725077058540,5.35798797,59430.0,59429.0,0.0028998]
[1725077058779,5.35798797,59430.0,59429.0,0.0018998]
[1725077058993,5.35798797,59430.0,59429.0,0.0008998]
[1725077059203,5.35798797,59430.0,59429.0,0.0018998]
[1725077059204,5.36398797,59430.0,59429.0,0.0018998]
[1725077060304,5.38536039,59430.0,59429.0,0.0028998]
[1725077068955,5.26757539,59430.0,59429.0,0.0028998]
[1725077069174,5.4029824,59430.0,59429.0,0.0028998]
[1725077074554,1.0519514,59430.0,59429.0,0.0028998]
[1725077075183,5.4029824,59430.0,59429.0,0.0028998]
[1725077075582,5.6385534,59430.0,59429.0,0.0028998]
[1725077080106,5.6898534,59430.0,59429.0,0.0028998]
[1725077081363,5.6385534,59430.0,59429.0,0.0028998]
[1725077083715,5.62188971,59430.0,59429.0,0.0028998]
[1725077084731,5.62270871,59430.0,59429.0,0.0028998]
[1725077086651,2.4727704,59430.0,59429.0,0.1255998]
[1725077087262,2.4727704,59430.0,59429.0,0.0028998]
[1725077091085,2.4727704,59430.0,59429.0,0.1223998]
[1725077094266,2.4727704,59430.0,59429.0,0.0028998]
[1725077099855,5.4038014,59430.0,59429.0,0.0028998]
[1725077100292,5.80792404,59430.0,59429.0,0.0028998]
[1725077100460,5.6393724,59430.0,59429.0,0.0028998]
[1725077101854,5.6393724,59430.0,59429.0,0.1223998]
[1725077102271,3.2823414,59430.0,59429.0,0.1223998]
[1725077104165,3.0467704,59430.0,59429.0,0.1223998]
[1725077107200,2.4687704,59430.0,59429.0,0.1223998]
[1725077111362,1.0527704,59430.0,59429.0,0.1223998]
[1725077112648,5.4038014,59430.0,59429.0,0.1223998]
[1725077115083,4.33131143,59430.0,59429.0,0.1223998]
[1725077115289,4.0767704,59430.0,59429.0,0.1223998]
[1725077115725,2.7097704,59430.0,59429.0,0.1223998]
[1725077116785,2.6167704,59430.0,59429.0,0.1223998]
[1725077129794,2.6167704,59430.0,59429.0,0.0028998]
[1725077130454,1.0527704,59430.0,59429.0,0.0028998]
[1725077130672,1.0527704,59430.0,59429.0,0.1214998]
[1725077131553,1.05731733,59430.0,59429.0,0.1214998]
[1725077131768,5.40834833,59430.0,59429.0,0.1214998]
[1725077134427,4.73731733,59430.0,59429.0,0.1214998]
[1725077134644,2.16431733,59430.0,59429.0,0.1214998]
[1725077134857,2.01831733,59430.0,59429.0,0.1214998]
[1725077136266,1.68531733,59430.0,59429.0,0.1214998]
[1725077136921,1.61631733,59430.0,59429.0,0.1214998]
[1725077140121,1.54606262,59430.0,59429.0,0.1214998]
[1725077146322,1.46360365,59430.0,59429.0,0.1214998]
[1725077146521,1.25506262,59430.0,59429.0,0.1214998]
[1725077150121,1.24906262,59430.0,59429.0,0.1204998]
[1725077150318,1.01349162,59430.0,59429.0,0.1194998]
[1725077150533,1.00849162,59430.0,59429.0,0.1194998]
[1725077151234,0.91949162,59430.0,59429.0,0.1194998]
[1725077151407,0.05373323,59430.0,59429.0,0.27380678]
[1725077151615,0.02398794,59430.0,59429.0,0.15601978]
[1725077151790,0.02398794,59430.0,59429.0,0.27380678]
[1725077152584,0.02298794,59430.0,59429.0,0.27380678]
[1725077152737,0.02298794,59430.0,59429.0,0.27680678]
[1725077153170,0.02298794,59430.0,59429.0,0.15901978]
[1725077154122,0.02298794,59430.0,59429.0,0.51238178]
[1725077154345,0.02298794,59430.0,59429.0,0.75195678]
[1725077154749,0.01844101,59430.0,59429.0,0.75195678]
[1725077155158,0.01844101,59430.0,59429.0,0.51638178]
[1725077155621,0.01844101,59430.0,59429.0,0.16301978]
[1725077155783,0.01844101,59430.0,59429.0,0.1314998]
[1725077155995,0.02279262,59430.0,59429.0,0.2492868]
[1725077156836,0.22303659,59430.0,59429.0,0.1264998]
[1725077157374,0.45860759,59430.0,59429.0,0.1264998]
[1725077159794,0.45860759,59430.0,59429.0,0.50036391]
[1725077161126,0.45860759,59430.0,59429.0,0.50536391]
[1725077161371,0.45860759,59430.0,59429.0,0.50036391]
[1725077161577,0.48501197,59430.0,59429.0,0.50036391]
[1725077163397,0.72058297,59430.0,59429.0,0.50036391]
[1725077163644,0.82058297,59430.0,59429.0,0.0078998]
[1725077163879,5.40718497,59430.0,59429.0,0.0078998]
[1725077164302,5.40718497,59430.0,59429.0,0.0048998]
[1725077164714,5.40718497,59430.0,59429.0,0.0008998]
[1725077164928,5.42245105,59430.0,59429.0,0.0008998]
[1725077165140,5.42445105,59430.0,59429.0,0.0008998]
[1725077166394,5.34142175,59430.0,59429.0,0.0008998]
[1725077166600,5.42588072,59430.0,59429.0,0.0008998]
[1725077168794,5.42669972,59430.0,59429.0,0.0008998]
[1725077169009,5.10866975,59430.0,59429.0,0.02560942]
[1725077169193,2.91363875,59430.0,59429.0,0.02560942]
[1725077169426,2.75363875,59430.0,59429.0,0.02560942]
[1725077169656,2.73863875,59430.0,59429.0,0.02560942]
[1725077171413,2.73863875,59430.0,59429.0,0.0008998]
[1725077172046,2.69006722,59430.0,59429.0,0.0008998]
[1725077172264,2.71647318,59430.0,59429.0,0.0008998]
[1725077173110,2.66247318,59430.0,59429.0,0.0008998]
[1725077173564,2.44898405,59430.0,59429.0,0.0008998]
[1725077174442,2.56676905,59430.0,59429.0,0.0008998]
[1725077175938,2.56476905,59430.0,59429.0,0.0008998]
[1725077176834,2.56276905,59430.0,59429.0,0.0008998]
[1725077177245,2.56276905,59430.0,59429.0,0.0018998]
[1725077177470,2.56476905,59430.0,59429.0,0.0008998]
[1725077177907,2.56676905,59430.0,59429.0,0.0008998]
[1725077178118,2.56476905,59430.0,59429.0,0.0008998]
[1725077178533,2.56476905,59430.0,59429.0,0.0018998]
[1725077178740,2.56276905,59430.0,59429.0,0.0018998]
[1725077181173,0.63576905,59430.0,59429.0,0.0018998]
[1725077181409,2.08376905,59430.0,59429.0,0.0018998]
[1725077182791,2.01676905,59430.0,59429.0,0.0018998]
[1725077183678,2.01676905,59430.0,59429.0,0.05239898]
[1725077183898,2.00476905,59430.0,59429.0,0.05239898]
[1725077184793,1.87076905,59430.0,59429.0,0.05239898]
[1725077185021,1.85876905,59430.0,59429.0,0.05239898]
[1725077186197,1.85876905,59430.0,59429.0,0.0018998]
[1725077186417,1.85876905,59430.0,59429.0,0.05240234]
[1725077189190,1.85876905,59430.0,59429.0,0.0018998]
[1725077194413,2.09434005,59430.0,59429.0,0.0018998]
[1725077196906,2.09434005,59430.0,59429.0,0.0008998]
[1725077197125,2.09834005,59430.0,59429.0,0.0008998]
[1725077197966,1.53976905,59430.0,59429.0,0.1225998]
[1725077198177,1.53976905,59430.0,59429.0,0.14040944]
[1725077198621,1.54376905,59430.0,59429.0,0.14040944]
[1725077199023,1.60176905,59430.0,59429.0,0.14040944]
[1725077199473,1.18876905,59430.0,59429.0,0.14040944]
[1725077199903,1.18476905,59430.0,59429.0,0.14040944]
[1725077200117,1.18676905,59430.0,59429.0,0.14040944]
[1725077203221,1.14689761,59430.0,59429.0,0.14040944]
[1725077203437,1.04291752,59430.0,59429.0,0.14040944]
[1725077203700,1.06932331,59430.0,59429.0,0.14040944]
[1725077203910,0.89932331,59430.0,59429.0,0.14040944]
[1725077204631,0.91452363,59430.0,59429.0,0.14040944]
[1725077204867,0.67895263,59430.0,59429.0,0.14040944]
[1725077205091,0.67977063,59430.0,59429.0,0.14040944]
[1725077205960,0.50477063,59430.0,59429.0,0.14040944]
[1725077206190,0.40377063,59430.0,59429.0,0.14040944]
[1725077209356,0.7218006,59430.0,59429.0,0.14040944]
[1725077211732,0.3684446,59430.0,59429.0,0.14040944]
[1725077211939,0.4862296,59430.0,59429.0,0.14040944]
[1725077213242,0.7218006,59430.0,59429.0,0.14040944]
[1725077216379,0.4862296,59430.0,59429.0,0.14040944]
[1725077216795,0.7218006,59430.0,59429.0,0.14040944]